Cogmind - Beta 16 @@@ ROGUE MODE // 2025.10.29 @ 19:42:52 Player: The Sun Result: Destroyed by D-53 Grenadier with Mini Grenade Launcher Performance ------------- Evolutions (0) 0 Regions Visited (4) 800 Robots Destroyed (33) 165 Value Destroyed (465) 465 Prototype IDs (2) 40 Alien Tech Used (0) 0 Bonus (0) 0 TOTAL SCORE: 1470 Bonus ------- None Cogmind --------- Core Integrity 0/250 Matter 300/300 Energy 124/125 System Corruption 0% Temperature Cool (0) Movement Flying (117) Ox1 Location -9/Mines Parts ------- > --- POWER (1) -------- Light Ion Engine > --- PROPULSION (2) --- Flight Unit Flight Unit > --- UTILITY (2) ------ Small Storage Unit > --- WEAPON (2) ------- Makeshift Spear > --- INVENTORY (8) ---- Light Ion Engine Wheel Grenade Launcher Rocket Launcher Heavy Explosive Trap Heavy Explosive Trap Peak State ------------ > --- POWER ------------ Light Nuclear Core > --- PROPULSION ------- Aluminum Leg Aluminum Leg > --- UTILITY ---------- Small Storage Unit Sensor Array > --- WEAPON ----------- Light Cannon Makeshift Spear > --- INVENTORY -------- Light Ion Engine Aluminum Leg Medium Laser Light Assault Rifle Light Assault Rifle Grenade Launcher Rocket Launcher [Rating: 12] Favorites ----------- Power Light Ion Engine Engine Light Ion Engine Power Core Light Nuclear Core Propulsion Aluminum Leg Leg Aluminum Leg Flight Unit Flight Unit Utility Small Storage Unit Device Sensor Array Storage Small Storage Unit Weapon Medium Laser Energy Gun Medium Laser Ballistic Gun Light Assault Rifle Ballistic Cannon Light Cannon Launcher Grenade Launcher Piercing Weapon Makeshift Spear Build | -11 -10 -10 -10 -9 ------- Run | Yrd Mat Min Exi Min Slots Evolved . | . . . . . Power . | . . . . . Propulsion . | . . . . . Utility . | . . . . . Weapon . | . . . . . Parts Attached 21 | 6 5 3 . 7 Power 5 | 1 1 1 . 2 Engine 4 | 1 1 . . 2 Core 1 | . . 1 . . Reactor . | . . . . . Propulsion 8 | 2 2 1 . 3 Treads . | . . . . . Leg 6 | 2 2 1 . 1 Wheel . | . . . . . Hover . | . . . . . Flight 2 | . . . . 2 Utility 2 | 1 1 . . . Device 1 | . 1 . . . Storage 1 | 1 . . . . Processor . | . . . . . Hackware . | . . . . . Protection . | . . . . . Artifact . | . . . . . Weapon 6 | 2 1 1 . 2 Energy Gun 1 | 1 . . . . Energy Cannon . | . . . . . Ballistic Gun 2 | 1 . . . 1 Ballistic Cannon 1 | . 1 . . . Launcher 1 | . . . . 1 Special Weapon . | . . . . . Impact Weapon . | . . . . . Slashing Weapon . | . . . . . Piercing Weapon 1 | . . 1 . . Special Melee Weapon . | . . . . . Unidentified Prototypes . | . . . . . Parts Lost 8 | . . 1 . 7 Power 1 | . . . . 1 Propulsion 3 | . . . . 3 Utility 1 | . . . . 1 Weapon 3 | . . 1 . 2 Highest Loss Streak 3 | . . 1 . 3 To Critical Strikes 1 | . . 1 . . Average Backups 4 | . 3 5 5 4 Power 1 | . 1 1 1 1 Propulsion . | . 1 . 1 . Utility . | . . . . . Weapon 2 | . 1 3 3 2 Tool/Special . | . . . . . Unused Backups 1 | . . . . 1 Power . | . . . . . Propulsion . | . . . . . Utility . | . . . . . Weapon 1 | . . . . 1 Tool/Special . | . . . . . Average Slot Usage (%) 92 | . 98 100 100 81 Engine 7 | . 14 4 . 10 Core 5 | . . 9 14 2 Leg 21 | . 28 28 28 11 Flight 2 | . . . . 5 Device 11 | . 13 14 14 8 Storage 14 | . 14 14 14 14 Energy Gun 8 | . 4 4 14 8 Ballistic Gun 7 | . 14 8 . 9 Ballistic Cannon 3 | . 9 9 . . Piercing Weapon 8 | . . 5 14 9 Peak Build Rating 12 | 6 7 12 12 12 Average Rating 8 | 4 6 9 12 8 On Entrance 7 | . 6 7 12 12 Avg Prop Armor Cover (%) . | . . . . . Naked Turns . | . . . . . Heaviest Build 16 | 11 13 16 15 15 Greatest Support 20 | 20 20 20 20 20 Greatest Overweight (x) 3 | . . . . 3 Average Overweight (x) . | . . . . . Largest Inventory Capacity 8 | 8 8 8 8 8 Average Capacity 7 | 7 8 8 8 8 Most Carried 7 | 5 5 7 5 7 Average Carried 4 | 1 3 5 5 4 Final Capacity 8 | 8 8 8 8 8 Final Carried 6 | 1 5 5 5 6 Class Distribution -------------------- 96% | Mutant 3% | Scavenger-Mutant Dominant Class ---------------- Mutant | -10/Materials Mutant | -10/Mines Mutant | -10/Exiles Mutant | -9/Mines Resources | -11 -10 -10 -10 -9 ----------- Run | Yrd Mat Min Exi Min Matter Collected 646 | 232 154 134 . 126 Remotely . | . . . . . Salvage Created 575 | . 231 146 . 198 Parts 54 | . 19 14 . 21 Haulers Intercepted . | . . . . . Recyclers Shooed . | . . . . . Parts Field Recycled . | . . . . . Retrieved Matter . | . . . . . Parts Self-Destructed . | . . . . . Prevented . | . . . . . Parts Restored . | . . . . . Kills | -11 -10 -10 -10 -9 ------- Run | Yrd Mat Min Exi Min Combat Hostiles Destroyed 30 | . 9 8 . 13 Guns 19 | . 5 4 . 10 Cannons 8 | . 4 4 . . AOE 3 | . . . . 3 Classes Destroyed 5 | . 4 . . 1 Worker 1 | . . . . 1 Builder 1 | . 1 . . . Watcher 1 | . 1 . . . Swarmer 25 | . 6 6 . 13 Grunt 5 | . 3 2 . . Best Kill Streak 4 | . 3 3 . 4 Combat Bots Only 4 | . 3 3 . 4 Max Kills in Single Turn 3 | . 1 2 . 3 Gunslinging . | . . . . . Exploded 3 | . . . . 3 Melee . | . . . . . Uniques/NPCs Destroyed . | . . . . . Combat | -11 -10 -10 -10 -9 -------- Run | Yrd Mat Min Exi Min Hostile Shots Fired 185 | . 57 54 . 74 Missed 54 | . 18 17 . 19 Hits 131 | . 39 37 . 55 Projectile 131 | . 39 37 . 55 AOE 1 | . . . . 1 Critical Strikes 2 | . . 2 . . Damage Taken 1101 | . 344 306 . 451 Core 251 | . 101 62 . 88 Absorbed by Shields . | . . . . . Core Remaining (%) 100 | 100 . . . . Volleys Fired 116 | . 36 26 . 54 Largest 2 | . 2 2 . 2 Hottest 80 | . 70 50 . 80 Shots Fired 175 | . 72 32 . 71 Gun 138 | . 46 22 . 70 Cannon 36 | . 26 10 . . Launcher 1 | . . . . 1 Special . | . . . . . Kinetic 117 | . 62 16 . 39 Thermal 57 | . 10 16 . 31 Explosive 1 | . . . . 1 Electromagnetic . | . . . . . Robot Hit Streak 9 | . 9 3 . 4 Robot Miss Streak 8 | . 8 3 . 4 Penetration Max . | . . . . . Secondary Targets 1 | . 1 . . . Max Gunslinging Chain 1 | . 1 . . . Shots Hit Robots 82 | . 33 17 . 32 Core Hits 44 | . 16 10 . 18 Critical Kills . | . . . . . Critical Parts Destroyed . | . . . . . Critical Strikes 3 | . 1 2 . . Burn 2 | . 1 1 . . Blast 1 | . . 1 . . Melee Attacks . | . . . . . Impact . | . . . . . Slashing . | . . . . . Piercing . | . . . . . Sneak Attacks . | . . . . . Combat Hostiles . | . . . . . Follow-up Attacks . | . . . . . Damage Inflicted 1098 | . 376 237 . 485 Guns 682 | . 257 118 . 307 Cannons 238 | . 119 119 . . Explosions 176 | . . . . 176 Melee . | . . . . . Ramming 2 | . . . . 2 Kinetic 572 | . 278 151 . 143 Thermal 348 | . 98 86 . 164 Explosive 176 | . . . . 176 Electromagnetic . | . . . . . Impact . | . . . . . Slashing . | . . . . . Piercing . | . . . . . Highest Corruption . | . . . . . Average Corruption . | . . . . . Corruption Purged . | . . . . . Corruption Blocked . | . . . . . Overload Shots . | . . . . . Overflow Damage 18 | . . . . 18 Projectiles . | . . . . . Explosions 18 | . . . . 18 Melee . | . . . . . Knockbacks 3 | . 2 1 . . Impact . | . . . . . Kinetic 3 | . 2 1 . . Secondary . | . . . . . Self-Inflicted Damage . | . . . . . Shots . | . . . . . Rammed . | . . . . . Targets Rammed 1 | . . . . 1 Kicked 1 | . . . . 1 Crushed . | . . . . . Highest Temperature 154 | . 154 104 . 91 Average Temperature 34 | . 31 39 . 35 Received Heat Transfer 81 | . 72 9 . . Siege Activations . | . . . . . Martial Activations . | . . . . . Shielding Activations . | . . . . . Robots Disrupted . | . . . . . Combat Hostiles . | . . . . . Robots Corrupted . | . . . . . Combat Hostiles . | . . . . . Parts Fried . | . . . . . Impact Corruptions . | . . . . . Robots Melted . | . . . . . Combat Hostiles . | . . . . . Parts Melted 2 | . 2 . . . Heat Transferred 1184 | . 370 333 . 481 Parts Sabotaged . | . . . . . Parts Stolen . | . . . . . Parts Stripped . | . . . . . Power Chain Reactions . | . . . . . Alert | -11 -10 -10 -10 -9 ------- Run | Yrd Mat Min Exi Min Maximum Alert Level . | . . . . . Low Security (%) 100 | 100 100 100 . 100 Level 1 . | . . . . . Level 2 . | . . . . . Level 3 . | . . . . . Level 4 . | . . . . . Level 5 . | . . . . . High Security . | . . . . . Max Security . | . . . . . Peak Influence 161 | . 123 100 . 161 Initial 33 | . . 33 . . Average 61 | . 48 59 . 76 Influence Increases 840 | . 249 190 . 401 Destroy 0b10 Robot/C 600 | . 180 160 . 260 Destroy 0b10 Robot/NC 15 | . 10 . . 5 Destroy Leader 112 | . 42 30 . 40 Disable Machine 15 | . . . . 15 Destroy Structure 8 | . 2 . . 6 Lose Combat Pursuer 90 | . 15 . . 75 Influence Decreases 809 | . 162 207 70 370 Entered New Map 124 | . . 54 70 . Time Decay 605 | . 162 143 . 300 Lost Part 80 | . . 10 . 70 Squads Dispatched 2 | . 2 . . . Investigation 1 | . 1 . . . Extermination . | . . . . . Reinforcement 1 | . 1 . . . Assault . | . . . . . Garrison . | . . . . . Intercept . | . . . . . Searches Triggered . | . . . . . Construction Impeded . | . . . . . Haulers Reinforced . | . . . . . Active Scanning Responses . | . . . . . Cargo Convoy Interrupts . | . . . . . Stealth | -11 -10 -10 -10 -9 --------- Run | Yrd Mat Min Exi Min Distress Signals 1 | . 1 . . . Communications Jammed . | . . . . . Distress Signals . | . . . . . Times Spotted 42 | . 15 8 . 19 Peak Tracking Total 4 | . 3 3 . 4 Tactical Retreats 3 | . 1 . . 2 Traps | -11 -10 -10 -10 -9 ------- Run | Yrd Mat Min Exi Min Traps Triggered 1 | . 1 . . . Indirectly . | . . . . . Trap Hack Attempts . | . . . . . Triggered . | . . . . . Disarmed . | . . . . . Reprogrammed . | . . . . . Reused . | . . . . . Traps Extracted . | . . . . . Installed . | . . . . . Triggered . | . . . . . Most Traps Carried 2 | . . . . 2 Machines | -11 -10 -10 -10 -9 ---------- Run | Yrd Mat Min Exi Min Machines Disabled 1 | . . . . 1 Max in Single Turn 1 | . . . . 1 Machines Repaired . | . . . . . Machines Dismantled . | . . . . . Machines Sabotaged . | . . . . . Overloaded Fab Kills . | . . . . . Hacking | -11 -10 -10 -10 -9 --------- Run | Yrd Mat Min Exi Min Machines Accessed 6 | . 2 . 4 . Terminals 1 | . 1 . . . Fabricators . | . . . . . Repair Stations . | . . . . . Recycling Units 1 | . 1 . . . Scanalyzers . | . . . . . Garrison Access . | . . . . . Total Hacks 52 | . 3 . 49 . Successful 52 | . 3 . 49 . Failed . | . . . . . Catastrophic . | . . . . . Database Lockouts . | . . . . . Manual 2 | . . . 2 . Terminals 1 | . 1 . . . Fabricators . | . . . . . Repair Stations . | . . . . . Recycling Units 2 | . 2 . . . Scanalyzers . | . . . . . Garrison Access . | . . . . . Terminal Hacks 50 | . 1 . 49 . Record 49 | . . . 49 . Prototype ID Bank 1 | . 1 . . . Fabricator Hacks . | . . . . . Repair Station Hacks . | . . . . . Recycling Unit Hacks 2 | . 2 . . . Process 1 | . 1 . . . Report Inventory 1 | . 1 . . . Scanalyzer . | . . . . . Garrison Access Hacks . | . . . . . Unauthorized Hacks . | . . . . . Terminals . | . . . . . Fabricators . | . . . . . Repair Stations . | . . . . . Recycling Units . | . . . . . Scanalyzers . | . . . . . Garrison Access . | . . . . . Data Cores Recovered . | . . . . . Used . | . . . . . Hacking Detections . | . . . . . Full Trace Events . | . . . . . Feedback Events . | . . . . . Feedback Blocked . | . . . . . Robot Schematics Acquired . | . . . . . Robots Built . | . . . . . Authchips . | . . . . . Time . | . . . . . Total Robot Build Rating . | . . . . . Part Schematics Acquired . | . . . . . Parts Built . | . . . . . Authchips . | . . . . . Time . | . . . . . Total Part Build Rating . | . . . . . Part Studies Acquired . | . . . . . Parts Repaired . | . . . . . Time . | . . . . . Parts Recycled . | . . . . . Recycled Matter . | . . . . . Retrieved Matter . | . . . . . Retrieved Components . | . . . . . Parts Scanalyzed . | . . . . . Part Schematics Acquired . | . . . . . Parts Damaged . | . . . . . Bothacking | -11 -10 -10 -10 -9 ------------ Run | Yrd Mat Min Exi Min Used RIF Installer . | . . . . . Robots Hacked . | . . . . . Non-combat . | . . . . . Combat . | . . . . . Robot Hacks Applied . | . . . . . Relay Couplers Released . | . . . . . Fabnet Peak Effective % . | . . . . . Robots Rewired . | . . . . . Allies Hacked . | . . . . . Hacks Repelled . | . . . . . Allies | -11 -10 -10 -10 -9 -------- Run | Yrd Mat Min Exi Min Total Allies . | . . . . . Largest Group . | . . . . . Highest-Rated Group . | . . . . . Highest-Rated Ally . | . . . . . Total Orders . | . . . . . Ally Attacks . | . . . . . Total Damage . | . . . . . Kills . | . . . . . Allies Corrupted . | . . . . . Allies Melted . | . . . . . Intel | -11 -10 -10 -10 -9 ------- Run | Yrd Mat Min Exi Min Active Infowar (turns) 1708 | . 408 302 536 462 Sensors 1708 | . 408 302 536 462 Robot Analysis Total . | . . . . . Derelict Logs Recovered 1 | . . . . 1 Drone Launches . | . . . . . Drone Recoveries . | . . . . . Exploration | -11 -10 -10 -10 -9 ------------- Run | Yrd Mat Min Exi Min Turns Passed 2149 | 79 436 302 536 796 Spaces Moved 1391 | 67 263 193 446 422 Core 33 | 19 . . . 14 Treads . | . . . . . Legs 1218 | 48 263 193 446 268 Wheels . | . . . . . Hover . | . . . . . Flight 140 | . . . . 140 Fastest Speed 50 | 50 120 120 120 117 Average Speed 129 | 100 120 120 120 155 Slowest Speed 200 | 120 120 120 120 200 Overloaded Moves . | . . . . . Propulsion Burnouts . | . . . . . Robots Hopped . | . . . . . Potential Cave-ins . | . . . . . Cave-ins Triggered . | . . . . . Exploration Rate (%) 46 | 4 34 47 71 76 Regions Visited 4 Branch Regions 3 Pre-discovered Areas 1 | . . . 1 . Known Exits Taken . | . . . . . Unknown Exits Taken 4 | 1 1 1 1 . Scrap Searched 2 | . . 1 . 1 Spaces Dug . | . . . . . Terrain Destroyed 6 | . . . . 6 Melee . | . . . . . Projectile . | . . . . . AOE 6 | . . . . 6 Terrain Rammed . | . . . . . Walls Destroyed . | . . . . . Machines Disabled . | . . . . . Actions | -11 -10 -10 -10 -9 --------- Run | Yrd Mat Min Exi Min Total 1575 | 79 317 233 447 499 Wait 9 | . 4 2 . 3 Move 1387 | 66 262 192 445 422 Hop . | . . . . . Pick Up 27 | 7 7 5 . 8 Fast Attach . | . . . . . Attach 13 | 6 1 1 . 5 Detach . | . . . . . Swap 12 | . 5 3 . 4 Drop 8 | . 2 4 . 2 Fire 116 | . 36 26 . 54 Melee . | . . . . . Ram . | . . . . . Kick 1 | . . . . 1 Crush . | . . . . . Escape Stasis . | . . . . . Rewire 2 | . . . 2 . Trap . | . . . . . Miscellaneous . | . . . . . Route ------- -11/Scrapyard -10/Materials -10/Mines (discovered 2 exits: [*Mat] / *Exi) -10/Exiles (discovered 2 exits: [*Min x2]) -9/Mines (discovered 1 exit: [*Mat]) History --------- Turn | Location | Event 8 | -11/Scrapyard | Discovered new exit (range 14) 80 | -11/Scrapyard | Entered Materials 307 | -10/Materials | Build established: Mutant 461 | -10/Materials | Discovered new exit (range 13) 516 | -10/Materials | Entered Mines 522 | -10/Mines | Met a Derelict bent on vengeance 633 | -10/Mines | Received a Rocket Launcher from a helpful Derelict 679 | -10/Mines | A weapon hastily lodged in a ceiling crevice suddenly fell to the ground 730 | -10/Mines | Core integrity fell below 50% 770 | -10/Mines | Discovered new exit (range 10) 810 | -10/Mines | Deemed a non-threat by the Exiles lab entrance 811 | -10/Mines | Discovered new exit (range 5) 818 | -10/Mines | Entered Exiles 847 | -10/Exiles | Discovered new exit (range 15) 869 | -10/Exiles | Met 8R-AWN 902 | -10/Exiles | Met EX-HEX 988 | -10/Exiles | Met EX-DEC 1032 | -10/Exiles | Learned location of Zion (-7) 1077 | -10/Exiles | Discovered new exit (range 14) 1164 | -10/Exiles | Met EX-BIN 1354 | -10/Exiles | Entered Mines 1752 | -9/Mines | Learned location of 1 exit from Materials 1774 | -9/Mines | Found a hidden stash of uninstalled traps 1850 | -9/Mines | Core integrity fell below 20% 1870 | -9/Mines | Lost 3 parts (1n1u1w) 2108 | -9/Mines | Discovered new exit (range 5) 2147 | -9/Mines | Assembled infested the area 2150 | -9/Mines | Destroyed by D-53 Grenadier with Mini Grenade Launcher Last Messages --------------- Searching scrap... Found Hvy. EM Pulse Gun. Found Beam Cannon. Found 69 Matter. Acquired 5 matter. Dropped Lgt. Ion Engine. Acquired Lgt. Ion Engine. Acquired 1 matter. Acquired Flight Unit. EXIT=FOUND K-01 Serf destroyed. Acquired 13 matter. Acquired Wheel. K-01 Serf collects debris. ALERT: Infestation in the mines, dispatching Demolisher response squad. C-45 Heavy ARC bursts open, deploying its payload. D-53 Grenadier unfolds itself. Lgt. Assault Rifle destroyed. Map ----- +----------------------------------------------------+ | ##### ##?????????????????????????????????????? | | #?????????????????????????????????????? | | #?????????????????????????????????????? | | """ #?????????????????????????????????????? | | """ #?????????????????????????????????????? | | """ #?????????????????????????????????????? | | [% #?????????????????????????????????????? | | = #?????????????????????????????????????? | | ## #####?????????????????????????????????????? | | ?# #?????????????????????????????????????????? | | ?# #?????????????????????????????????????????? | | ## ##????????????????????????????????????????? | | #????????????????????????????????????????? | | ### #????????????????????????????????????????? | | ??# #????????????????????????????????????????? | | ??# ####?????????????????????????????????????? | | ??# #?????????????????????????????????????? | | ??### #?????????????????????????????????????? | | ????# ##????????????????????????????????????? | | ????# ##??????????????###??????????????????? | | ????# #?????????????? #??????????????????? | | ???## #??????????????# #??????????????????? | | ??## #??????????????# #??????????????????? | | ?## ##?????????????# #??????????????????? | | ## #?????????????#h#??????????????????? | | # #?????????????#@#??????????????????? | | #?????????????# #??????????????????? | | ####?????????????# #??????????????????? | | ##????????????????# #??????????????????? | | ##?????????????????# #??????????????????? | | ##??????????????????#*#???????????####???? | | #???????????????????#%#??????????## ##??? | | #???????????????????# #??????????# * ##?? | | # %##???????????????????#d#??????????# ##? | | # #????????????????????# #??????????# #? | | # #????????????????????#d###????????## #? | | # ##?????????????????### ##????????# ##? | | ##???????????????## #????????# ##?? | | #??????????????## < #????????# ##??? | | #############??# ##???????## #???? | | "" ## #?## #####???????## ##???? | | "" ## #?# ##?????####### ##???? | | """ ## """ """ #?# ##?????# #???? | | """ """ #?# #?????# ##### #???? | | ###### """ """ #?## ##????# #???# ##???? | | #????# #??## ##???# #???# ##????? | | ##???# #???# #???# #???# ##????? | | ##??#############???# #???# #??## ####?? | | #######????????????## ##???# #??# #?? | | #?????????????## ###### #??# #? | +----------------------------------------------------+ Best States ------------- Heat Dissipation 25 Energy Generation 14 Energy Capacity 160 Matter Stores 300 Matter Capacity 300 Sight Range 16 Robot Scan Range 14 Terrain Scan Density 10 Evasion (%) 55 Item Schematics ----------------- None Robot Schematics ------------------ None Fabricated ------------ Nothing Repaired ---------- Nothing Studied --------- None Alien Tech Used ----------------- None Achievements -------------- None Challenges ------------ None Game ------ Seed BiometalAngularCalibrator Manual? 0 Play Time 00:18:40 Cumulative 7.5 hours Start 2025.10.29 @ 19:27:54 End 2025.10.29 @ 19:42:52 Sessions 1 Manual Loads 0 Difficulty Rogue Special Mode None Game No. 22 Rogue 22 Adventurer 0 Explorer 0 Win Type - Total 0 Types 0/0/0/0/0/0/0/0/0/0 Lore% 8 Gallery% 13 Achievement% 9 Wizard Run 0 Options --------- Layout 1 ASCII 0 Keyboard 0 Movement Mouse Keybinds 0 Fullscreen 1 Font 32/SmallcapsGlow Map View 50x35 Zoom Use 0% Tactical HUD 0 Map Filters NONE Filters NONE Steam 1 RUN: a3efb0af-99f7-418b-a650-376a58a216ba